Cogmind - Beta 15 @@@ ROGUE MODE // 2025.06.22 @ 12:39:17 Player: KN-OKO Result: Destroyed by OU-K5T(j) with Overtuned Pulse Rifle Performance ------------- Evolutions (0) 0 Regions Visited (3) 600 Robots Destroyed (47) 235 Value Destroyed (1366) 1366 Prototype IDs (19) 380 Alien Tech Used (0) 0 Bonus (800) 800 TOTAL SCORE: 3381 Bonus ------- Registered with UFD 300 Met Optimus in HQ 500 Cogmind --------- Core Integrity 0/250 Matter 240/300 Energy 119/125 System Corruption 0% Temperature Cool (78) Movement Rolling (115) Ox1 Location -9/Scraptown Parts ------- > --- POWER (1) -------- Light Ion Engine > --- PROPULSION (2) --- Armored Huge Wheel > --- UTILITY (2) ------ Large Storage Unit Layered Light Armor Plating > --- WEAPON (2) ------- Battle Cannon Battle Cannon > --- INVENTORY (15) --- Aluminum Leg Aluminum Leg Armored Leg High-capacity Matter Pod (134) Structural Scanner Hardened Light Armor Plating Rainbow Chip Barrage Gun Improved Light Cannon Proton Missile Launcher Subdweller Shrapnel Launcher Multitool Makeshift Sword Thermal Lance Vortex Trap Peak State ------------ > --- POWER ------------ Light Ion Engine > --- PROPULSION ------- Armored Huge Wheel > --- UTILITY ---------- Large Storage Unit Layered Light Armor Plating > --- WEAPON ----------- Battle Cannon Makeshift Sword > --- INVENTORY -------- Aluminum Leg Aluminum Leg Armored Leg High-capacity Matter Pod Structural Scanner Hardened Light Armor Plating Rainbow Chip Barrage Gun Improved Light Cannon Battle Cannon Proton Missile Launcher Subdweller Shrapnel Launcher Multitool Thermal Lance Vortex Trap [Rating: 25] Favorites ----------- Power Ion Engine Engine Ion Engine Propulsion Light Treads Treads Light Treads Leg Aluminum Leg Wheel Armored Huge Wheel Utility Large Storage Unit Device Structural Scanner Storage Large Storage Unit Protection Layered Light Armor Plating Weapon Battle Cannon Energy Gun EM Pulse Gun Energy Cannon Subdweller Beam Cannon Ballistic Gun Battle Rifle Ballistic Cannon Battle Cannon Launcher Grenade Launcher Slashing Weapon Makeshift Sword Build | -11 -10 -10 -9 ------- Run | Yrd Mat Sub Scr Slots Evolved . | . . . . Power . | . . . . Propulsion . | . . . . Utility . | . . . . Weapon . | . . . . Parts Attached 34 | 7 6 16 5 Power 4 | 1 1 1 1 Engine 4 | 1 1 1 1 Core . | . . . . Reactor . | . . . . Propulsion 9 | 2 . 4 3 Treads 4 | 2 . 2 . Leg 4 | . . 2 2 Wheel 1 | . . . 1 Hover . | . . . . Flight . | . . . . Utility 8 | 2 3 2 1 Device 4 | 1 2 1 . Storage 2 | 1 1 . . Processor . | . . . . Hackware . | . . . . Protection 2 | . . 1 1 Artifact . | . . . . Weapon 13 | 2 2 9 . Energy Gun 2 | 1 . 1 . Energy Cannon 1 | . . 1 . Ballistic Gun 3 | 1 . 2 . Ballistic Cannon 3 | . 1 2 . Launcher 2 | . 1 1 . Special Weapon . | . . . . Impact Weapon . | . . . . Slashing Weapon 2 | . . 2 . Piercing Weapon . | . . . . Special Melee Weapon . | . . . . Unidentified Prototypes . | . . . . Parts Lost 11 | . 1 10 . Power 2 | . . 2 . Propulsion 3 | . . 3 . Utility 3 | . 1 2 . Weapon 3 | . . 3 . Highest Loss Streak 3 | . 1 3 . To Critical Strikes 1 | . . 1 . Average Backups 12 | 4 8 13 13 Power . | . 1 . . Propulsion 2 | 2 3 2 2 Utility 3 | . 1 3 3 Weapon 6 | . 3 7 6 Tool/Special . | . . . . Unused Backups 19 | . 2 4 13 Power . | . . . . Propulsion 4 | . 2 1 1 Utility 6 | . . 1 5 Weapon 8 | . . 2 6 Tool/Special 1 | . . . 1 Average Slot Usage (%) 96 | . 98 99 87 Engine 13 | . 14 13 12 Treads 16 | . 27 20 . Leg 6 | . . 7 6 Wheel 2 | . . . 10 Device 10 | . 13 12 6 Storage 14 | . 14 14 14 Protection 3 | . . 1 7 Energy Gun 3 | . 14 2 . Energy Cannon 1 | . . 2 . Ballistic Gun 1 | . 2 1 . Ballistic Cannon 12 | . 11 12 14 Slashing Weapon 8 | . . 8 13 Peak Build Rating 25 | 7 8 16 25 Average Rating 13 | 5 7 12 20 On Entrance 7 | . 7 8 13 Naked Turns . | . . . . Heaviest Build 42 | 15 31 42 38 Greatest Support 40 | 40 40 40 28 Greatest Overweight (x) 4 | 4 . 1 2 Average Overweight (x) . | 1 . . 1 Largest Inventory Capacity 15 | 8 15 15 15 Average Capacity 14 | 7 13 15 15 Most Carried 15 | 6 13 15 15 Average Carried 13 | 3 8 13 14 Final Capacity 15 | 8 15 15 15 Final Carried 15 | 6 13 15 15 Class Distribution -------------------- 100% | Mutant Dominant Class ---------------- Mutant | -10/Materials Mutant | -10/Subcaves Mutant | -9/Scraptown Resources | -11 -10 -10 -9 ----------- Run | Yrd Mat Sub Scr Matter Collected 1997 | 279 348 1156 214 Remotely . | . . . . Salvage Created 1271 | 72 415 784 . Parts 72 | 6 18 48 . Haulers Intercepted 2 | . 2 . . Recyclers Shooed 1 | 1 . . . Parts Field Recycled . | . . . . Retrieved Matter . | . . . . Parts Self-Destructed 22 | . . 22 . Prevented . | . . . . Kills | -11 -10 -10 -9 ------- Run | Yrd Mat Sub Scr Combat Hostiles Destroyed 38 | . 9 29 . Guns 12 | . 6 6 . Cannons 15 | . 1 14 . AOE 11 | . 2 9 . Classes Destroyed 10 | 2 5 3 . Worker 1 | . 1 . . Builder 1 | . 1 . . Tunneler 2 | 1 1 . . Hauler 2 | . 2 . . Recycler 1 | 1 . . . Turret 2 | . . 2 . Swarmer 9 | . 3 6 . Grunt 8 | . 6 2 . Sentry 1 | . . 1 . Subdweller 20 | . . 20 . Best Kill Streak 7 | 2 6 7 . Combat Bots Only 7 | . 4 7 . Max Kills in Single Turn 3 | 1 2 3 . Gunslinging . | . . . . Exploded 3 | . 1 3 . Melee . | . . . . Uniques/NPCs Destroyed . | . . . . Combat | -11 -10 -10 -9 -------- Run | Yrd Mat Sub Scr Hostile Shots Fired 229 | . 32 178 19 Missed 99 | . 10 82 7 Hits 130 | . 22 96 12 Projectile 130 | . 22 96 12 Critical Strikes 4 | . 1 3 . Damage Taken 1958 | 39 260 1480 179 Core 267 | . 47 169 51 Absorbed by Shields . | . . . . Regen/Repaired (Parts) 532 | . 45 . 487 Core Remaining (%) 100 | 100 . . . Volleys Fired 110 | 3 31 71 5 Largest 2 | 2 2 2 2 Hottest 80 | 60 70 80 66 Shots Fired 204 | 6 57 131 10 Gun 71 | 6 31 34 . Cannon 112 | . 23 79 10 Launcher 21 | . 3 18 . Special . | . . . . Kinetic 133 | 3 28 92 10 Thermal 29 | . . 29 . Explosive 10 | . 3 7 . Electromagnetic 32 | 3 26 3 . Robot Hit Streak 14 | 4 6 14 2 Robot Miss Streak 5 | 1 5 4 3 Penetration Max . | . . . . Secondary Targets . | . . . . Autonomous 16 | . . 16 . Shots Hit Robots 143 | 4 31 104 4 Core Hits 89 | 3 20 64 2 Critical Kills . | . . . . Critical Parts Destroyed . | . . . . Critical Strikes 4 | . . 4 . Blast 2 | . . 2 . Corrupt 1 | . . 1 . Sever 1 | . . 1 . Melee Attacks 63 | . . 60 3 Impact . | . . . . Slashing 63 | . . 60 3 Piercing . | . . . . Sneak Attacks 1 | . . 1 . Combat Hostiles . | . . . . Follow-up Attacks . | . . . . Damage Inflicted 4777 | 87 770 3852 68 Guns 791 | 48 291 452 . Cannons 1427 | . 237 1122 68 Explosions 1684 | 39 242 1403 . Melee 875 | . . 875 . Ramming . | . . . . Kinetic 2477 | 11 276 2122 68 Thermal 541 | 39 36 466 . Explosive 562 | . 206 356 . Electromagnetic 322 | 37 252 33 . Impact . | . . . . Slashing 875 | . . 875 . Piercing . | . . . . Highest Corruption . | . . . . Average Corruption . | . . . . Corruption Purged . | . . . . Corruption Blocked . | . . . . Overload Shots . | . . . . Overflow Damage 78 | . 6 72 . Projectiles 4 | . . 4 . Explosions 33 | . 6 27 . Melee 41 | . . 41 . Knockbacks 15 | . 3 10 2 Impact . | . . . . Kinetic 15 | . 3 10 2 Secondary . | . . . . Self-Inflicted Damage 76 | 39 . 37 . Shots 2 | 1 . 1 . Rammed . | . . . . Targets Rammed . | . . . . Kicked . | . . . . Crushed . | . . . . Highest Temperature 220 | 12 126 220 69 Average Temperature 60 | 12 52 109 34 Received Heat Transfer 687 | . 147 450 90 Siege Activations . | . . . . Martial Activations . | . . . . Shielding Activations . | . . . . Robots Disrupted . | . . . . Combat Hostiles . | . . . . Robots Corrupted . | . . . . Combat Hostiles . | . . . . Parts Fried . | . . . . Impact Corruptions . | . . . . Robots Melted . | . . . . Combat Hostiles . | . . . . Parts Melted 1 | . . 1 . Heat Transferred 1183 | . 50 1133 . Parts Sabotaged . | . . . . Parts Stolen . | . . . . Parts Stripped . | . . . . Power Chain Reactions 2 | 1 1 . . Alert | -11 -10 -10 -9 ------- Run | Yrd Mat Sub Scr Maximum Alert Level . | . . . . Low Security (%) 100 | 100 100 . . Level 1 . | . . . . Level 2 . | . . . . Level 3 . | . . . . Level 4 . | . . . . Level 5 . | . . . . High Security . | . . . . Max Security . | . . . . Peak Influence 162 | 10 162 . . Initial . | . . . . Average 55 | . 61 . . Influence Increases 648 | 10 363 275 . Destroy 0b10 Robot/C 400 | . 180 220 . Destroy 0b10 Robot/NC 35 | 10 25 . . Destroy Leader 64 | . 54 10 . Successful Hack 2 | . 2 . . Disable Machine 45 | . 45 . . Destroy Structure 12 | . 12 . . Lose Combat Pursuer 90 | . 45 45 . Influence Decreases 648 | 10 340 261 37 Entered New Map 49 | . . 12 37 Time Decay 577 | 10 338 229 . Lost Part 22 | . 2 20 . Squads Dispatched 2 | . 2 . . Investigation 2 | . 2 . . Extermination . | . . . . Reinforcement . | . . . . Assault . | . . . . Garrison . | . . . . Intercept . | . . . . Searches Triggered . | . . . . Construction Impeded . | . . . . Haulers Reinforced . | . . . . Active Scanning Responses . | . . . . Cargo Convoy Interrupts . | . . . . Stealth | -11 -10 -10 -9 --------- Run | Yrd Mat Sub Scr Distress Signals 1 | . 1 . . Communications Jammed . | . . . . Distress Signals . | . . . . Times Spotted 58 | . 18 33 7 Peak Tracking Total 6 | . 5 6 6 Tactical Retreats 3 | . 1 2 . Traps | -11 -10 -10 -9 ------- Run | Yrd Mat Sub Scr Traps Triggered 2 | . 2 . . Indirectly . | . . . . Trap Hack Attempts . | . . . . Triggered . | . . . . Disarmed . | . . . . Reprogrammed . | . . . . Reused . | . . . . Traps Extracted . | . . . . Installed . | . . . . Triggered . | . . . . Most Traps Carried 1 | . . . 1 Machines | -11 -10 -10 -9 ---------- Run | Yrd Mat Sub Scr Machines Disabled 9 | . 4 4 1 Max in Single Turn 3 | . 2 3 1 Machines Repaired . | . . . . Machines Dismantled . | . . . . Machines Sabotaged . | . . . . Overloaded Fab Kills . | . . . . Hacking | -11 -10 -10 -9 --------- Run | Yrd Mat Sub Scr Machines Accessed 7 | . 3 2 2 Terminals 2 | . 2 . . Fabricators . | . . . . Repair Stations 1 | . 1 . . Recycling Units . | . . . . Scanalyzers . | . . . . Garrison Access . | . . . . Total Hacks 13 | . 6 2 5 Successful 9 | . 2 2 5 Failed 4 | . 4 . . Catastrophic . | . . . . Database Lockouts . | . . . . Manual 2 | . 2 . . Terminals 4 | . 4 . . Fabricators . | . . . . Repair Stations 2 | . 2 . . Recycling Units . | . . . . Scanalyzers . | . . . . Garrison Access . | . . . . Terminal Hacks 7 | . . 2 5 Record 5 | . . 1 4 Proto ID Catalog 2 | . . 1 1 Fabricator Hacks . | . . . . Repair Station Hacks 2 | . 2 . . Scan Component 1 | . 1 . . Repair 1 | . 1 . . Recycling Unit Hacks . | . . . . Scanalyzer . | . . . . Garrison Access Hacks . | . . . . Unauthorized Hacks . | . . . . Terminals . | . . . . Fabricators . | . . . . Repair Stations . | . . . . Recycling Units . | . . . . Scanalyzers . | . . . . Garrison Access . | . . . . Data Cores Recovered . | . . . . Used . | . . . . Hacking Detections 3 | . 3 . . Full Trace Events . | . . . . Feedback Events . | . . . . Feedback Blocked . | . . . . Robot Schematics Acquired . | . . . . Robots Built . | . . . . Authchips . | . . . . Time . | . . . . Total Robot Build Rating . | . . . . Part Schematics Acquired . | . . . . Parts Built . | . . . . Authchips . | . . . . Time . | . . . . Total Part Build Rating . | . . . . Parts Repaired 1 | . 1 . . Time 26 | . 26 . . Parts Recycled . | . . . . Recycled Matter . | . . . . Retrieved Matter . | . . . . Retrieved Components . | . . . . Parts Scanalyzed . | . . . . Part Schematics Acquired . | . . . . Parts Damaged . | . . . . Bothacking | -11 -10 -10 -9 ------------ Run | Yrd Mat Sub Scr Used RIF Installer . | . . . . Robots Hacked . | . . . . Non-combat . | . . . . Combat . | . . . . Robot Hacks Applied . | . . . . Relay Couplers Released . | . . . . Fabnet Peak Effective % . | . . . . Robots Rewired . | . . . . Allies Hacked . | . . . . Hacks Repelled . | . . . . Allies | -11 -10 -10 -9 -------- Run | Yrd Mat Sub Scr Total Allies . | . . . . Largest Group . | . . . . Highest-Rated Group . | . . . . Highest-Rated Ally . | . . . . Total Orders . | . . . . Ally Attacks . | . . . . Total Damage . | . . . . Kills . | . . . . Allies Corrupted . | . . . . Allies Melted 3 | . . . 3 Intel | -11 -10 -10 -9 ------- Run | Yrd Mat Sub Scr Active Infowar (turns) 3561 | 23 888 1940 710 Terrain 154 | . 154 . . Structural 2817 | . 167 1940 710 Seismic 590 | 23 567 . . Robot Analysis Total . | . . . . Derelict Logs Recovered 4 | . . 2 2 Drone Launches . | . . . . Drone Recoveries . | . . . . Exploration | -11 -10 -10 -9 ------------- Run | Yrd Mat Sub Scr Turns Passed 6951 | 109 951 4240 1651 Spaces Moved 3616 | 42 444 2126 1004 Core 17 | 17 . . . Treads 2236 | 25 444 1767 . Legs 568 | . . 359 209 Wheels 795 | . . . 795 Hover . | . . . . Flight . | . . . . Fastest Speed 50 | 50 160 160 115 Average Speed 162 | 182 160 178 130 Slowest Speed 260 | 250 160 260 260 Overloaded Moves . | . . . . Propulsion Burnouts . | . . . . Robots Hopped . | . . . . Potential Cave-ins 2 | . . 2 . Cave-ins Triggered . | . . . . Exploration Rate (%) 66 | 5 88 95 78 Regions Visited 3 Branch Regions 2 Pre-discovered Areas . | . . . . Known Exits Taken . | . . . . Unknown Exits Taken 3 | 1 1 1 . Scrap Searched 9 | . . 6 3 Spaces Dug 8 | . . 7 1 Terrain Destroyed 126 | 6 10 106 4 Melee 4 | . . 3 1 Projectile 7 | . . 4 3 AOE 115 | 6 10 99 . Terrain Rammed . | . . . . Walls Destroyed . | . . . . Machines Disabled . | . . . . Actions | -11 -10 -10 -9 --------- Run | Yrd Mat Sub Scr Total 4410 | 66 628 2378 1338 Wait 491 | 8 132 57 294 Move 3613 | 41 443 2125 1004 Hop . | . . . . Pick Up 41 | 7 8 15 11 Fast Attach 15 | 6 4 2 3 Attach 10 | 1 . 9 . Detach 3 | . 1 2 . Swap 38 | . 4 29 5 Drop 26 | . 5 8 13 Fire 110 | 3 31 71 5 Melee 63 | . . 60 3 Ram . | . . . . Kick . | . . . . Crush . | . . . . Escape Stasis . | . . . . Rewire . | . . . . Trap . | . . . . Miscellaneous . | . . . . Route ------- -11/Scrapyard -10/Materials (discovered 6 exits: [*Mat x3] / [*Min x2] / *Sub) -10/Subcaves (discovered 4 exits: [*Mat x2] / [*Rec] / *Scr) -9/Scraptown (discovered 1 exit: [*Fac]) History --------- Turn | Location | Event 27 | -11/Scrapyard | Discovered new exit (range 16) 110 | -11/Scrapyard | Entered Materials 223 | -10/Materials | Discovered new exit (range 12) 315 | -10/Materials | Build established: Mutant 335 | -10/Materials | Discovered new exit (range 8) 609 | -10/Materials | Discovered new exit (range 15) 781 | -10/Materials | Discovered new exit (range 7) 816 | -10/Materials | Discovered new exit (range 11) 871 | -10/Materials | Repaired Lgt. Treads 1020 | -10/Materials | Discovered new exit (range 9) 1061 | -10/Materials | Entered Subcaves 1062 | -10/Subcaves | Approached by a straggling Scientist 1140 | -10/Subcaves | Learned location of 2 exits from Materials 1143 | -10/Subcaves | Learned 2 Materials zone layouts 1160 | -10/Subcaves | Scientist uncovered a shortcut to Scraptown 1350 | -10/Subcaves | Discovered new exit (range 11) 1850 | -10/Subcaves | Discovered new exit (range 9) 1875 | -10/Subcaves | Shifting Twisted Machinery released Spk. Treads 1879 | -10/Subcaves | Shifting Twisted Machinery released Sub. Monowheel 2055 | -10/Subcaves | Visited Clippyterm 2094 | -10/Subcaves | Discovered new exit (range 12) 2221 | -10/Subcaves | Disturbed a concealed Subdweller 3049 | -10/Subcaves | Ambushed by Subdwellers from Twisted Machinery 3060 | -10/Subcaves | Core integrity fell below 50% 3115 | -10/Subcaves | Lost 3 parts (1n2w) 3120 | -10/Subcaves | Destroyed 7 combat bots 3263 | -10/Subcaves | A swath of the cavern ceiling suddenly collapsed 3348 | -10/Subcaves | A swath of the cavern ceiling suddenly collapsed 3812 | -10/Subcaves | Ambushed by Subdwellers from Twisted Machinery 3824 | -10/Subcaves | Core integrity fell below 20% 4077 | -10/Subcaves | Shifting Twisted Machinery released Barrage Gun 4128 | -10/Subcaves | Shifting Twisted Machinery released Scrap Shield 4310 | -10/Subcaves | Visited 4L-MR0's lab 4337 | -10/Subcaves | Found Rainbow Chip 4786 | -10/Subcaves | Shifting Twisted Machinery released Multitool 4802 | -10/Subcaves | Shifting Twisted Machinery released Sub. Power Source 5301 | -10/Subcaves | Entered Scraptown 5554 | -9/Scraptown | Visited Assassins FH 5569 | -9/Scraptown | Visited CPS Storage 5801 | -9/Scraptown | Scanned Subdweller tech in exchange for log data 5804 | -9/Scraptown | Learned location of 1 exit from Lower Caves 5805 | -9/Scraptown | Learned Factory emergency access door positions 5811 | -9/Scraptown | Heard Great Nut preacher, LISTEN AND RECITE! 5936 | -9/Scraptown | Visited Comm Corps 5955 | -9/Scraptown | Visited Cyclists 5982 | -9/Scraptown | Visited Fellowship of the Rings 6004 | -9/Scraptown | Visited CR-KLE's Repair Center 6015 | -9/Scraptown | CR-KLE repaired 6 parts 6056 | -9/Scraptown | Visited Awakened 6073 | -9/Scraptown | Visited UFD Registry 6073 | -9/Scraptown | Registered with UFD as "Fissioncycle" 6101 | -9/Scraptown | Visited Junk Repository 6136 | -9/Scraptown | Visited Curators Association 6171 | -9/Scraptown | Visited Scrap Suit Storage 6204 | -9/Scraptown | Delivered Scrap Shield to a Scientist 6298 | -9/Scraptown | Visited Research Penetration Think Tank 6323 | -9/Scraptown | Visited Derelict Rescue Squad 6340 | -9/Scraptown | Visited Scrapoid Pod Storage 6350 | -9/Scraptown | Visited Science Guys 6397 | -9/Scraptown | Visited Chapter 10 6416 | -9/Scraptown | Visited Scrapoid Research Area 6434 | -9/Scraptown | Visited Abandonware Association 6449 | -9/Scraptown | Learned abandonware demo "TRNCOAT.EXE" 6538 | -9/Scraptown | Met Optimus 6538 | -9/Scraptown | Accepted into 0bPrime 6892 | -9/Scraptown | Civil war broke out across Scraptown 6907 | -9/Scraptown | Found Thermal Lance 6926 | -9/Scraptown | Discovered new exit (range 11) 6952 | -9/Scraptown | Destroyed by OU-K5T(j) with Overtuned Pulse Rifle Last Messages --------------- 06894_ Optimus: "Bah, right when we're so close. Don't worry Fissioncycle, they can't stop us now. Get out of here and do your job, we'll deal with this." 06896_ Optimus: "No holds barred, if they're hostile, they are an enemy of the people and we must shoot to kill. Collateral damage is to be expected!" 06901_ WP-KHB(E): "We are one!" 06903_ Slug penetrates Machine. 06903_ Machine disabled. 06907_ Acquired Thermal Lance. 06913_ 4F-Q5I(j): "Don't throw away your lives for a pipe dream!" 06924_ WP-KHB(E) destroyed. 06926_ EXIT=FOUND 06933_ 9I-23B(p) knocked back. 06937_ UJ-RL1(j): "0bPrime and our allies are ready to strike fear into MC's aging processors, join us and win!" 06940_ VJ-Z6R(z) destroyed. 06942_ Slug penetrates 9I-23B(p). 06942_ 9I-23B(p) destroyed. 06946_ OU-K5T(j) knocked back. Map ----- +----------------------------------------------------+ | | | ?????????????????????????????????????????????????? | | ?????????????????????????????????????????????????? | | ?????????????????????????????????????????????????? | | ?????????????????????????????????????????????????? | | ?????????????????????????????????????????????????? | | ?????????????????????????????????????????????????? | | ?????????????????????????????????????????????????? | | ?????????????????????????????????????????????????? | | ?????????????????????????????????????????????????? | | ?????????????????????????????????????????????????? | | ?????????????????????????????????????????????????? | | ?????????????????????????????????????????????????? | | ?????????????????????????????????????????????????? | | ????????????????????#####???????"#???????????????? | | ???????????????????## "####?? < #???????????????? | | ???????????????"#### !!["%"##=* #???????????????? | | ???????????????? ![%[=!**%=!! ?????????????????? | | ?????????????????? =*!!=!%![!????????????????????? | | ???????????????????#%==%![#??????????????????????? | | ???????????????????#!=!%#????????????????????????? | | ######??????????????#%=!############?????????????? | | """" ??????#######?#*j;"""""""""""#?????????????? | | " " ??????"""""""?# !=""""" X """#?????????????? | | """???? " ### # " """"#?????????????? | | """#??" ## # @ " ""#?????????????? | | " """##"" ## #""" """#?????????????? | | "" " ##"""" ## #"""" ""#?????????????? | | "" ##"" " ## #"" #?????????????? | | "" ""##"""" ## #"" "" " #?????????????? | | " "##"" ## #"" "" " #?????????????? | | "??? #?# # "#?????????????? | | ? ??????? ??# #" #?????????????? | | ??# #?????????# #???# ## ##########?????????????? | | ### ########### ##### ## ##?????????????????????? | | """ """"""""""" """""[!" "#???####??????????????? | | [%* "#??""""#??????????????? | | *!%= "#?? "#??????????????? | | =[ "#? "#??????????????? | | "## "#??????????????? | | !"#??????????????? | | """"""""""""""""""""" "## "#??????????????? | | """"""""""""""""""""" "#? "#??????????????? | | # ################"" #??""" #??????????????? | | ##????????#"" "###########???????????? | | X"#????????#"" "## """"""""#????????? | | " "" ##????????#"" "## " " " "#????????? | | "" X"#??????###"" ## &"#????????? | | " ######### #""[ "## &"#????????? | | "" &"#????????? | +----------------------------------------------------+ Best States ------------- Heat Dissipation 39 Energy Generation 10 Energy Capacity 250 Matter Stores 300 Matter Capacity 300 Sight Range 16 Terrain Scan Range 14 Terrain Scan Density 10 Armor Coverage 150 Evasion (%) 40 Recoil Reduction 2 Item Schematics ----------------- None Robot Schematics ------------------ None Fabricated ------------ Nothing Repaired ---------- Lgt. Treads | 67% | -10/Materials Alien Tech Used ----------------- None Achievements -------------- None Challenges ------------ None Game ------ Seed PhaseVoltaicEdition Manual? 0 Play Time 00:33:56 Cumulative 502.3 hours Start 2025.06.22 @ 12:06:51 End 2025.06.22 @ 12:39:17 Sessions 2 Manual Loads 0 Difficulty Rogue Special Mode None Game No. 348 Rogue 348 Adventurer 0 Explorer 0 Win Type - Total 46 Types 39/0/5/2/0/0/0/0/0/0 Lore% 83 Gallery% 79 Achievement% 72 Wizard Run 0 Options --------- Layout 0 ASCII 0 Keyboard 1 Movement Numpad Keybinds 0 Fullscreen 1 Font 24/Smallcaps Map View 76x50 Zoom Use 0% Tactical HUD 1 Map Filters NONE Filters NONE Steam 1 RUN: e96fb84a-c0a1-41fb-be44-9197edc30ef5